Cogmind - Beta 12 @@@ ROGUE MODE // 2023.03.12 @ 19:59:17 Player: ArabianSandBoa Result: Self-destructed Performance ------------- Evolutions (5) 2500 Regions Visited (10) 2000 Robots Destroyed (68) 340 Value Destroyed (2201) 2201 Prototype IDs (32) 640 Alien Tech Used (0) 0 Bonus (812) 812 TOTAL SCORE: 8493 Bonus ------- High Alert Combat Kills 12 Entered DSFs 500 Aligned with FarCom 300 Cogmind --------- Core Integrity 646/1000 Matter 300/300 Energy 64/100 System Corruption 36% Temperature Hot (295) Movement Core (1600) Ox31 Location -5/Factory Parts ------- > --- POWER (2) -------- (None) > --- PROPULSION (9) --- Flexi-carbon Leg > --- UTILITY (4) ------ Huge Storage Unit Advanced Targeting Computer Improved Medium Armor Plating > --- WEAPON (2) ------- Advanced Beam Cannon Advanced Beam Cannon > --- INVENTORY (25) --- Advanced Heat Sink Cooling System Large Storage Unit Advanced Targeting Computer Improved Weapon Cycler Cloak of Protection Improved Medium Armor Plating Improved Focal Shield Hacking Suite Hacking Suite Hacking Suite Improved Trap Extractor (0/6) Trap Reconfigurator Improved EM Shotgun Improved EM Shotgun Improved EM Shotgun Tesla Rifle Guided Plasma Cannon Improved Grenade Launcher Plasma Cutter Peak State ------------ > --- POWER ------------ Nuclear Core Neutrino Core > --- PROPULSION ------- Flexi-carbon Leg Flexi-carbon Leg Flight Unit Improved VTOL Module Xenon Bombardment Thruster > --- UTILITY ---------- Advanced Heat Sink Huge Storage Unit Advanced Targeting Computer Improved Particle Charger > --- WEAPON ----------- Tesla Rifle Tesla Rifle > --- INVENTORY -------- Advanced Heat Sink Cooling System Large Storage Unit Advanced Targeting Computer Improved Weapon Cycler Cloak of Protection Improved Medium Armor Plating Hacking Suite Hacking Suite Hacking Suite Improved Trap Extractor Trap Reconfigurator Improved EM Shotgun Improved EM Shotgun Improved EM Shotgun Tesla Rifle Advanced Beam Cannon Advanced Beam Cannon Advanced Beam Cannon Advanced Beam Cannon Guided Plasma Cannon Improved Grenade Launcher Plasma Cutter [Rating: 63] Favorites ----------- Power Nuclear Core Engine Ion Engine Power Core Nuclear Core Propulsion Wheel Treads Improved Treads Leg Flexi-carbon Leg Wheel Wheel Flight Unit Flight Unit Utility Huge Storage Unit Device Advanced Heat Sink Storage Huge Storage Unit Processor Advanced Targeting Computer Protection Improved Utility Shielding Weapon Improved EM Shotgun Energy Gun Improved EM Shotgun Energy Cannon Advanced Beam Cannon Ballistic Gun Improved Assault Rifle Ballistic Cannon Light Cannon Launcher Improved Grenade Launcher Build | -11 -10 -9 -9 -9 -8 -8 -7 -6 -6 -5 ------- Run | Jun Mat Mat Min Exi Min Mat Fac Fac DSF Fac Slots Evolved 10 | . . 2 . . . 2 2 2 . 2 Power 1 | . . . . . . . . 1 . . Propulsion 7 | . . 2 . . . 2 2 . . 1 Utility 2 | . . . . . . . . 1 . 1 Weapon . | . . . . . . . . . . . Parts Attached 70 | 2 8 14 8 1 1 7 . . 9 20 Power 7 | . 1 3 1 . . . . . 1 1 Engine 2 | . 1 1 . . . . . . . . Core 5 | . . 2 1 . . . . . 1 1 Reactor . | . . . . . . . . . . . Propulsion 27 | 2 2 5 3 . 1 3 . . 2 9 Treads 4 | . . . . . . . . . . 4 Leg 3 | . . . . . . . . . . 3 Wheel 13 | 2 2 5 3 . . . . . . 1 Hover . | . . . . . . . . . . . Flight 7 | . . . . . 1 3 . . 2 1 Utility 10 | . 2 1 . 1 . 2 . . 1 3 Device 4 | . 1 . . . . 2 . . . 1 Storage 2 | . 1 . . 1 . . . . . . Processor 1 | . . . . . . . . . 1 . Hackware . | . . . . . . . . . . . Protection 3 | . . 1 . . . . . . . 2 Artifact . | . . . . . . . . . . . Weapon 26 | . 3 5 4 . . 2 . . 5 7 Energy Gun 13 | . 2 3 2 . . 1 . . 2 3 Energy Cannon 7 | . . . . . . 1 . . 2 4 Ballistic Gun 1 | . . 1 . . . . . . . . Ballistic Cannon 1 | . 1 . . . . . . . . . Launcher 4 | . . 1 2 . . . . . 1 . Special Weapon . | . . . . . . . . . . . Impact Weapon . | . . . . . . . . . . . Slashing Weapon . | . . . . . . . . . . . Piercing Weapon . | . . . . . . . . . . . Special Melee Weapon . | . . . . . . . . . . . Unidentified Prototypes 2 | . . 1 . . . 1 . . . . Corrupted Parts 5 | . . . . . . . . . . 5 System Corruption 36 | . . . . . . . . . . 36 Parts Lost 36 | . 4 1 4 . . 1 . . 4 22 Power 3 | . . . . . . . . . . 3 Propulsion 22 | . 2 . 4 . . . . . 4 12 Utility 5 | . . 1 . . . 1 . . . 3 Weapon 6 | . 2 . . . . . . . . 4 Highest Loss Streak 12 | . 3 1 3 . . 1 . . 3 12 To Critical Strikes . | . . . . . . . . . . . Average Slot Usage (%) 90 | . 94 93 93 88 89 99 84 73 88 75 Engine 3 | . 14 . . . . . . . . . Core 7 | . . 10 11 11 11 9 7 6 12 6 Treads 2 | . . . . . . . . . . 12 Leg 1 | . . . . . . . . . . 7 Wheel 24 | . 25 43 37 33 33 27 23 20 13 3 Flight 8 | . . . . . 1 26 23 20 28 9 Device 4 | . 11 1 . . . . 7 6 6 6 Storage 9 | . 14 11 11 11 11 9 7 6 6 5 Processor 1 | . . . . . . . . . 6 5 Protection 4 | . . 4 11 11 11 8 . . . 3 Energy Gun 14 | . 16 14 19 22 22 15 15 13 7 3 Energy Cannon 1 | . . . . . . 2 . . 4 6 Ballistic Cannon 2 | . 11 2 . . . . . . . . Naked Turns . | . . . . . . . . . . . Heaviest Build 116 | 11 91 99 101 95 95 102 94 94 112 116 Greatest Support 92 | 20 26 54 48 32 32 32 32 32 32 92 Greatest Overweight (x) 11 | . 9 3 7 2 2 3 2 2 11 11 Average Overweight (x) 2 | . 3 1 2 2 2 2 2 2 5 6 Largest Inventory Capacity 25 | 8 25 25 25 25 25 25 25 25 25 25 Average Capacity 24 | 8 24 25 25 25 25 25 25 25 25 25 Most Carried 25 | 6 24 25 25 25 25 25 25 25 25 24 Average Carried 21 | 5 15 23 24 24 24 24 24 25 24 22 Final Capacity 25 | 8 25 25 25 25 25 25 25 25 25 25 Final Carried 25 | 3 23 25 25 25 25 25 25 25 25 20 Class Distribution -------------------- 57% | Mutant 42% | Scavenger-Mutant Dominant Class ---------------- Mutant | -10/Materials Mutant | -9/Materials Mutant | -9/Mines Mutant | -9/Exiles Mutant | -8/Mines Scavenger-Mutant | -8/Materials Scavenger-Mutant | -7/Factory Scavenger-Mutant | -6/Factory Scavenger-Mutant | -6/DSF Scavenger-Mutant | -5/Factory Resources | -11 -10 -9 -9 -9 -8 -8 -7 -6 -6 -5 ----------- Run | Jun Mat Mat Min Exi Min Mat Fac Fac DSF Fac Matter Collected 1365 | 181 421 211 112 . 10 40 . . 100 290 Remotely . | . . . . . . . . . . . Salvage Created 2792 | . 664 581 158 . . 326 . . 112 951 Parts 145 | . 43 40 8 . . 18 . . 5 31 Haulers Intercepted 5 | . 2 2 . . . 1 . . . . Recyclers Shooed 2 | . 1 1 . . . . . . . . Parts Field Recycled . | . . . . . . . . . . . Retrieved Matter . | . . . . . . . . . . . Parts Self-Destructed . | . . . . . . . . . . . Prevented . | . . . . . . . . . . . Kills | -11 -10 -9 -9 -9 -8 -8 -7 -6 -6 -5 ------- Run | Jun Mat Mat Min Exi Min Mat Fac Fac DSF Fac Combat Hostiles Destroyed 52 | . 14 11 7 . . 3 . . 4 13 Guns 24 | . 11 5 4 . . 1 . . . 3 Cannons 14 | . 3 3 . . . 2 . . . 6 AOE 10 | . . 3 3 . . . . . 3 1 Classes Destroyed 12 | . 7 2 1 . . . . . 1 1 Worker 1 | . . 1 . . . . . . . . Builder 2 | . 1 . 1 . . . . . . . Hauler 5 | . 2 2 . . . 1 . . . . Recycler 3 | . 2 1 . . . . . . . . Operator 2 | . 2 . . . . . . . . . Watcher 8 | . 3 . . . . 4 . . . 1 Swarmer 11 | . 8 3 . . . . . . . . Grunt 25 | . 6 5 2 . . 3 . . 3 6 Sentry 8 | . . 3 . . . . . . . 5 Specialist 1 | . . . . . . . . . 1 . Hunter 2 | . . . . . . . . . . 2 Assembled 5 | . . . 5 . . . . . . . Best Kill Streak 7 | . 7 4 3 . . 6 . . 3 4 Combat Bots Only 5 | . 5 3 3 . . 3 . . 3 4 Max Kills in Single Turn 3 | . 1 3 2 . . 1 . . 1 1 Gunslinging . | . . . . . . . . . . . Exploded 3 | . . 3 2 . . . . . 1 1 Melee . | . . . . . . . . . . . Uniques/NPCs Destroyed . | . . . . . . . . . . . Combat | -11 -10 -9 -9 -9 -8 -8 -7 -6 -6 -5 -------- Run | Jun Mat Mat Min Exi Min Mat Fac Fac DSF Fac Damage Taken 4690 | . 649 456 456 . . 115 . . 310 2704 Core 751 | . 136 106 66 . . 58 . . 31 354 Absorbed by Shields . | . . . . . . . . . . . Core Remaining (%) 81 | 100 45 . . . 57 89 100 . 96 . Volleys Fired 203 | . 51 31 16 . . 26 . . 14 65 Largest 2 | . 2 2 2 . . 2 . . 2 2 Hottest 136 | . 100 90 90 . . 120 . . 136 136 Shots Fired 356 | . 99 55 32 . . 30 . . 20 120 Gun 183 | . 68 42 28 . . 8 . . 6 31 Cannon 160 | . 31 12 . . . 22 . . 6 89 Launcher 13 | . . 1 4 . . . . . 8 . Special . | . . . . . . . . . . . Kinetic 44 | . 31 13 . . . . . . . . Thermal 191 | . 68 6 . . . 22 . . 6 89 Explosive 13 | . . 1 4 . . . . . 8 . Electromagnetic 108 | . . 35 28 . . 8 . . 6 31 Robot Hit Streak 19 | . 10 11 4 . . 5 . . 11 19 Robot Miss Streak 5 | . 4 4 5 . . 2 . . 1 2 Penetration Max . | . . . . . . . . . . . Secondary Targets 3 | . 2 . 1 . . . . . . . Max Gunslinging Chain 1 | . 1 . 1 . . . . . . . Shots Hit Robots 242 | . 58 46 20 . . 7 . . 16 95 Core Hits 135 | . 34 25 16 . . 11 . . 11 38 Critical Kills . | . . . . . . . . . . . Critical Parts Destroyed . | . . . . . . . . . . . Critical Strikes 7 | . 7 . . . . . . . . . Burn 6 | . 6 . . . . . . . . . Blast 1 | . 1 . . . . . . . . . Melee Attacks . | . . . . . . . . . . . Impact . | . . . . . . . . . . . Slashing . | . . . . . . . . . . . Piercing . | . . . . . . . . . . . Sneak Attacks . | . . . . . . . . . . . Combat Hostiles . | . . . . . . . . . . . Follow-up Attacks . | . . . . . . . . . . . Damage Inflicted 6153 | . 847 1051 416 . . 629 . . 927 2283 Guns 2257 | . 577 582 301 . . 103 . . 108 586 Cannons 2602 | . 270 174 . . . 526 . . 153 1479 Explosions 1294 | . . 295 115 . . . . . 666 218 Melee . | . . . . . . . . . . . Ramming . | . . . . . . . . . . . Kinetic 458 | . 270 188 . . . . . . . . Thermal 3127 | . 577 174 . . . 526 . . 153 1697 Explosive 967 | . . 186 115 . . . . . 666 . Electromagnetic 1601 | . . 503 301 . . 103 . . 108 586 Impact . | . . . . . . . . . . . Slashing . | . . . . . . . . . . . Piercing . | . . . . . . . . . . . Highest Corruption 36 | . . . . . . . . . 1 36 Average Corruption 28 | . . . . . . . . . 1 32 Corruption Purged . | . . . . . . . . . . . Corruption Blocked . | . . . . . . . . . . . Effects 36 | . . . . . . . . . 1 35 Message Errors 7 | . . . . . . . . . . 7 Matter Fused 9 | . . . . . . . . . . 9 Heat Flow Errors 4 | . . . . . . . . . 1 3 Energy Discharges 4 | . . . . . . . . . . 4 Data Loss (minor) 3 | . . . . . . . . . . 3 Data Loss (major) 1 | . . . . . . . . . . 1 Misfires 1 | . . . . . . . . . . 1 Misdirections 1 | . . . . . . . . . . 1 Weapon Failures 6 | . . . . . . . . . . 6 Overload Shots . | . . . . . . . . . . . Overflow Damage 131 | . . . . . . 60 . . 67 4 Projectiles 100 | . . . . . . 60 . . 40 . Explosions 31 | . . . . . . . . . 27 4 Melee . | . . . . . . . . . . . Knockbacks 4 | . 4 . . . . . . . . . Impact . | . . . . . . . . . . . Kinetic 3 | . 3 . . . . . . . . . Secondary 1 | . 1 . . . . . . . . . Self-Inflicted Damage 74 | . . 21 . . . . . . . 53 Shots 2 | . . 1 . . . . . . . 1 Rammed . | . . . . . . . . . . . Targets Rammed . | . . . . . . . . . . . Kicked . | . . . . . . . . . . . Crushed . | . . . . . . . . . . . Highest Temperature 444 | . 243 183 171 . . 360 . . 77 444 Average Temperature 98 | . 122 64 58 . . 134 . . 46 94 Received Heat Transfer 1248 | . 144 195 36 . . 54 . . 45 774 Effects 4 | . 1 . . . . 1 . . . 2 Energy Bleed 1 | . . . . . . . . . . 1 Interference 2 | . 1 . . . . . . . . 1 Short Circuit 1 | . . . . . . 1 . . . . Siege Activations . | . . . . . . . . . . . Robots Corrupted 3 | . . . . . . . . . 1 2 Combat Hostiles 3 | . . . . . . . . . 1 2 Parts Fried 15 | . . 4 . . . . . . 2 9 Impact Corruptions . | . . . . . . . . . . . Robots Melted 1 | . . . . . . . . . . 1 Combat Hostiles 1 | . . . . . . . . . . 1 Parts Melted 13 | . 5 . . . . 4 . . . 4 Heat Transferred 6717 | . 2146 335 . . . 1200 . . 222 2814 Parts Sabotaged . | . . . . . . . . . . . Parts Stolen . | . . . . . . . . . . . Parts Stripped . | . . . . . . . . . . . Power Chain Reactions 2 | . . 2 . . . . . . . . Missiles Intercepted . | . . . . . . . . . . . Alert | -11 -10 -9 -9 -9 -8 -8 -7 -6 -6 -5 ------- Run | Jun Mat Mat Min Exi Min Mat Fac Fac DSF Fac Peak Influence 414 | . 335 220 116 . . 113 51 24 125 414 Initial 65 | . . 38 25 . . . 51 24 16 65 Average 101 | . 150 65 77 . . 8 51 24 30 202 Maximum Alert Level 2 | . 1 1 . . . . . . . 2 Low Security (%) 84 | 100 83 96 100 . 100 100 100 100 100 45 Level 1 14 | . 16 3 . . . . . . . 47 Level 2 1 | . . . . . . . . . . 7 Level 3 . | . . . . . . . . . . . Level 4 . | . . . . . . . . . . . Level 5 . | . . . . . . . . . . . High Security . | . . . . . . . . . . . Max Security . | . . . . . . . . . . . Squads Dispatched 11 | . 2 2 . . . . . . 1 6 Investigation 1 | . . . . . . . . . . 1 Extermination . | . . . . . . . . . . . Reinforcement 6 | . 2 2 . . . . . . 1 1 Assault 1 | . . . . . . . . . . 1 Garrison 3 | . . . . . . . . . . 3 Intercept . | . . . . . . . . . . . Searches Triggered . | . . . . . . . . . . . Construction Impeded 1 | . . 1 . . . . . . . . Haulers Reinforced . | . . . . . . . . . . . Active Scanning Responses . | . . . . . . . . . . . Cargo Convoy Interrupts . | . . . . . . . . . . . Stealth | -11 -10 -9 -9 -9 -8 -8 -7 -6 -6 -5 --------- Run | Jun Mat Mat Min Exi Min Mat Fac Fac DSF Fac Distress Signals 4 | . 1 1 . . . 1 . . . 1 Communications Jammed . | . . . . . . . . . . . Distress Signals . | . . . . . . . . . . . Times Spotted 72 | . 20 12 10 . . 6 . . 7 17 Peak Tracking Total 5 | . 5 5 3 . . 5 . . 4 5 Tactical Retreats . | . . . . . . . . . . . Traps | -11 -10 -9 -9 -9 -8 -8 -7 -6 -6 -5 ------- Run | Jun Mat Mat Min Exi Min Mat Fac Fac DSF Fac Traps Triggered 1 | . . . . . . . . . . 1 Indirectly . | . . . . . . . . . . . Trap Hack Attempts . | . . . . . . . . . . . Triggered . | . . . . . . . . . . . Disarmed . | . . . . . . . . . . . Reprogrammed . | . . . . . . . . . . . Reused . | . . . . . . . . . . . Traps Extracted . | . . . . . . . . . . . Installed . | . . . . . . . . . . . Triggered . | . . . . . . . . . . . Machines | -11 -10 -9 -9 -9 -8 -8 -7 -6 -6 -5 ---------- Run | Jun Mat Mat Min Exi Min Mat Fac Fac DSF Fac Machines Disabled 5 | . 1 . . . . . . . 1 3 Max in Single Turn 3 | . 1 . . . . . . . 1 3 Garrison Access 1 | . . . . . . . . . . 1 Machines Repaired . | . . . . . . . . . . . Machines Sabotaged . | . . . . . . . . . . . Overloaded Fab Kills . | . . . . . . . . . . . Hacking | -11 -10 -9 -9 -9 -8 -8 -7 -6 -6 -5 --------- Run | Jun Mat Mat Min Exi Min Mat Fac Fac DSF Fac Machines Accessed 15 | . 7 3 1 1 . 1 . 1 . 1 Terminals 12 | . 6 3 . . . 1 . 1 . 1 Fabricators . | . . . . . . . . . . . Repair Stations . | . . . . . . . . . . . Recycling Units 1 | . 1 . . . . . . . . . Scanalyzers . | . . . . . . . . . . . Garrison Access . | . . . . . . . . . . . Total Hacks 47 | . 25 9 1 1 . 5 . 4 . 2 Successful 27 | . 17 4 1 1 . 2 . 1 . 1 Failed 19 | . 7 5 . . . 3 . 3 . 1 Catastrophic . | . . . . . . . . . . . Database Lockouts 1 | . 1 . . . . . . . . . Manual 22 | . 10 5 . 1 . 4 . . . 2 Terminals 43 | . 23 9 . . . 5 . 4 . 2 Fabricators . | . . . . . . . . . . . Repair Stations . | . . . . . . . . . . . Recycling Units 2 | . 2 . . . . . . . . . Scanalyzers . | . . . . . . . . . . . Garrison Access . | . . . . . . . . . . . Terminal Hacks 19 | . 12 2 1 1 . 1 . 1 . 1 Robot Analysis 3 | . 3 . . . . . . . . . Prototype ID Bank 4 | . 3 . . . . 1 . . . . Open Door 1 | . . . 1 . . . . . . . Open DSF 1 | . . . . . . . . 1 . . Branch Access Points 1 | . 1 . . . . . . . . . Terminal Index 1 | . 1 . . . . . . . . . Unreport Threat 1 | . . 1 . . . . . . . . Hauler Manifests 1 | . 1 . . . . . . . . . Zone Layout 5 | . 3 1 . . . . . . . 1 EX-Prototype ID Bank 1 | . . . . 1 . . . . . . Fabricator Hacks . | . . . . . . . . . . . Repair Station Hacks . | . . . . . . . . . . . Recycling Unit Hacks 1 | . 1 . . . . . . . . . Report Inventory 1 | . 1 . . . . . . . . . Scanalyzer . | . . . . . . . . . . . Garrison Access Hacks . | . . . . . . . . . . . Unauthorized Hacks 7 | . 4 2 . . . 1 . . . . Terminals 6 | . 3 2 . . . 1 . . . . Botnet 6 | . 3 2 . . . 1 . . . . Fabricators . | . . . . . . . . . . . Repair Stations . | . . . . . . . . . . . Recycling Units 1 | . 1 . . . . . . . . . Mask 1 | . 1 . . . . . . . . . Scanalyzers . | . . . . . . . . . . . Garrison Access . | . . . . . . . . . . . Data Cores Recovered . | . . . . . . . . . . . Used . | . . . . . . . . . . . Hacking Detections 12 | . 7 3 . . . 1 . 1 . . Full Trace Events 1 | . 1 . . . . . . . . . Feedback Events . | . . . . . . . . . . . Feedback Blocked . | . . . . . . . . . . . Robot Schematics Acquired . | . . . . . . . . . . . Robots Built . | . . . . . . . . . . . Authchips . | . . . . . . . . . . . Time . | . . . . . . . . . . . Total Robot Build Rating . | . . . . . . . . . . . Part Schematics Acquired . | . . . . . . . . . . . Parts Built . | . . . . . . . . . . . Authchips . | . . . . . . . . . . . Time . | . . . . . . . . . . . Total Part Build Rating . | . . . . . . . . . . . Parts Repaired . | . . . . . . . . . . . Time . | . . . . . . . . . . . Parts Recycled . | . . . . . . . . . . . Recycled Matter . | . . . . . . . . . . . Retrieved Matter . | . . . . . . . . . . . Retrieved Components . | . . . . . . . . . . . Parts Scanalyzed . | . . . . . . . . . . . Part Schematics Acquired . | . . . . . . . . . . . Parts Damaged . | . . . . . . . . . . . Bothacking | -11 -10 -9 -9 -9 -8 -8 -7 -6 -6 -5 ------------ Run | Jun Mat Mat Min Exi Min Mat Fac Fac DSF Fac Used RIF Installer . | . . . . . . . . . . . Robots Hacked . | . . . . . . . . . . . Non-combat . | . . . . . . . . . . . Combat . | . . . . . . . . . . . Robot Hacks Applied . | . . . . . . . . . . . Relay Couplers Released 1 | . . . . . . . . . . 1 Machine Destruction 1 | . . . . . . . . . . 1 Fabnet Peak Effective % . | . . . . . . . . . . . Robots Rewired . | . . . . . . . . . . . Allies Hacked . | . . . . . . . . . . . Hacks Repelled . | . . . . . . . . . . . Allies | -11 -10 -9 -9 -9 -8 -8 -7 -6 -6 -5 -------- Run | Jun Mat Mat Min Exi Min Mat Fac Fac DSF Fac Total Allies . | . . . . . . . . . . . Largest Group . | . . . . . . . . . . . Highest-Rated Group . | . . . . . . . . . . . Highest-Rated Ally . | . . . . . . . . . . . Total Orders . | . . . . . . . . . . . Ally Attacks . | . . . . . . . . . . . Total Damage . | . . . . . . . . . . . Kills . | . . . . . . . . . . . Allies Corrupted . | . . . . . . . . . . . Allies Melted . | . . . . . . . . . . . Intel | -11 -10 -9 -9 -9 -8 -8 -7 -6 -6 -5 ------- Run | Jun Mat Mat Min Exi Min Mat Fac Fac DSF Fac Robot Analysis Total 3 | . 3 . . . . . . . . . Derelict Logs Recovered . | . . . . . . . . . . . Drone Launches . | . . . . . . . . . . . Drone Recoveries . | . . . . . . . . . . . Exploration | -11 -10 -9 -9 -9 -8 -8 -7 -6 -6 -5 ------------- Run | Jun Mat Mat Min Exi Min Mat Fac Fac DSF Fac Turns Passed 4074 | 5 974 435 419 371 72 745 73 5 236 739 Spaces Moved 1924 | 1 534 264 245 322 51 132 62 5 110 198 Core . | . . . . . . . . . . . Treads 88 | . . . . . . . . . . 88 Legs 8 | . . . . . . . . . . 8 Wheels 1826 | 1 534 264 245 322 51 132 62 5 110 100 Hover . | . . . . . . . . . . . Flight 2 | . . . . . . . . . . 2 Fastest Speed 80 | 80 80 105 105 113 113 113 113 113 113 215 Average Speed 137 | 80 140 107 118 113 113 115 113 113 157 252 Slowest Speed 564 | 80 215 135 195 113 113 128 113 113 245 564 Overloaded Moves . | . . . . . . . . . . . Propulsion Burnouts . | . . . . . . . . . . . Robots Hopped . | . . . . . . . . . . . Cave-ins Triggered . | . . . . . . . . . . . Exploration Rate (%) 38 | 2 84 26 58 70 24 17 2 . 89 9 Regions Visited 10 Branch Regions 3 Pre-discovered Areas . | . . . . . . . . . . . Known Exits Taken 1 | . . . . . . . . 1 . . Unknown Exits Taken 8 | 1 1 1 1 1 1 1 1 . . . Scrap Searched 2 | . . . 1 . 1 . . . . . Spaces Dug 6 | . . . . . . 6 . . . . Terrain Destroyed 119 | . . 23 23 . . 7 . . 35 31 Melee . | . . . . . . . . . . . Projectile 8 | . . . . . . 7 . . . 1 AOE 111 | . . 23 23 . . . . . 35 30 Terrain Rammed . | . . . . . . . . . . . Walls Destroyed . | . . . . . . . . . . . Machines Disabled . | . . . . . . . . . . . Actions | -11 -10 -9 -9 -9 -8 -8 -7 -6 -6 -5 --------- Run | Jun Mat Mat Min Exi Min Mat Fac Fac DSF Fac Total 2985 | 5 660 363 341 330 65 692 65 4 154 306 Wait 685 | . 42 20 60 . 13 526 2 . 3 19 Move 1914 | . 533 263 244 321 50 131 61 4 109 198 Hop . | . . . . . . . . . . . Pick Up 66 | . 23 17 6 4 1 1 1 . 10 3 Fast Attach 28 | . 4 5 3 . . 2 . . 4 10 Attach 18 | . 3 3 . . 1 2 . . 2 7 Detach 2 | . . 1 . . . 1 . . . . Swap 24 | 2 1 6 5 1 . 3 . . 3 3 Drop 45 | 3 3 17 7 4 . . 1 . 9 1 Fire 203 | . 51 31 16 . . 26 . . 14 65 Melee . | . . . . . . . . . . . Ram . | . . . . . . . . . . . Kick . | . . . . . . . . . . . Crush . | . . . . . . . . . . . Escape Stasis . | . . . . . . . . . . . Rewire . | . . . . . . . . . . . Trap . | . . . . . . . . . . . Miscellaneous . | . . . . . . . . . . . Route ------- -11/Junkyard -10/Materials (discovered 4 exits: *Mat x3 / *Min) -9/Materials -9/Mines (discovered 3 exits: *Mat x2 / *Exi) -9/Exiles (discovered 2 exits: [*Min x2]) -8/Mines -8/Materials -7/Factory -6/Factory -6/DSF -5/Factory History --------- Turn | Location | Event 6 | -11/Junkyard | Discovered new exit (range 0) 6 | -11/Junkyard | Entered Materials 226 | -10/Materials | Lost 3 parts (1n2w) 300 | -10/Materials | Build established: Mutant 365 | -10/Materials | Core integrity fell below 50% 433 | -10/Materials | Discovered new exit (range 11) 568 | -10/Materials | Discovered new exit (range 7) 734 | -10/Materials | Central database locked down 744 | -10/Materials | Identified exit to Mines 763 | -10/Materials | Discovered new exit (range 17) 972 | -10/Materials | Discovered new exit (range 5) 980 | -10/Materials | Entered another Materials area 980 | -9/Materials | Evolved 2 slots: Propulsion x2 1392 | -9/Materials | Discovered new exit (range 16) 1415 | -9/Materials | Entered Mines 1435 | -9/Mines | Discovered new exit (range 6) 1468 | -9/Mines | Met a Derelict bent on vengeance 1484 | -9/Mines | Met a Derelict who couldn't figure out how to use a Trap Extractor 1543 | -9/Mines | Discovered new exit (range 5) 1544 | -9/Mines | Assembled infested the area 1755 | -9/Mines | Lost 3 parts (3n) 1828 | -9/Mines | Deemed a non-threat by the Exiles lab entrance 1828 | -9/Mines | Discovered new exit (range 5) 1834 | -9/Mines | Entered Exiles 1851 | -9/Exiles | Discovered new exit (range 15) 1865 | -9/Exiles | Met 8R-AWN 1882 | -9/Exiles | Met EX-HEX 1912 | -9/Exiles | Met EX-BIN 1926 | -9/Exiles | Aligned with FarCom system 1927 | -9/Exiles | Given EX-Vault access code 1954 | -9/Exiles | Opened EX-Vault 1964 | -9/Exiles | Found Trap Reconfigurator 1987 | -9/Exiles | Warned to stay clear of 0b10 Research branches 2009 | -9/Exiles | Found Gui. Plasma Cannon 2016 | -9/Exiles | Found Cloak of Protection 2074 | -9/Exiles | Met EX-DEC 2196 | -9/Exiles | Discovered new exit (range 10) 2205 | -9/Exiles | Stole three prototypes: Cloak of Protection, Trap Reconfigurator, Gui. Plasma Cannon 2205 | -9/Exiles | Entered Mines 2267 | -8/Mines | Discovered new exit (range 7) 2277 | -8/Mines | Entered Materials 2277 | -8/Materials | Evolved 2 slots: Propulsion x2 2597 | -8/Materials | Build established: Scavenger-Mutant 2977 | -8/Materials | Discovered new exit (range 13) 3022 | -8/Materials | Entered Factory 3022 | -7/Factory | Evolved 2 slots: Propulsion x2 3024 | -7/Factory | FarCom data flow suspended 3083 | -7/Factory | Discovered new exit (range 9) 3095 | -7/Factory | Entered another Factory area 3095 | -6/Factory | Evolved 2 slots: Power x1, Utility x1 3100 | -6/Factory | Identified exit to DSF 3100 | -6/Factory | Entered DSF 3101 | -6/DSF | Joined Warlord attack on 0b10 via DSF 3128 | -6/DSF | Additional patrols routed to DSF 3258 | -6/DSF | Lost 3 parts (3n) 3283 | -6/DSF | Discovered new exit (range 15) 3336 | -6/DSF | Entered Factory 3336 | -5/Factory | Evolved 2 slots: Propulsion x1, Utility x1 3467 | -5/Factory | Garrison activated, responded to threat 3526 | -5/Factory | System corruption reached 10% 3591 | -5/Factory | Lost 6 parts (1p2n1u2w) 3591 | -5/Factory | System corruption reached 30% 4075 | -5/Factory | Self-destructed Last Messages --------------- 04039_ Imp. Treads destroyed. 04040_ 0N7LD3YK 7VASW